bitfinex-derivatives/quotes_BNBF0:USTF0_20250417
["timestamp","ask_amount","ask_price","bid_price","bid_amount"]
[1744865391665,0.381,583.17,582.23,0.31530463]
[1744865394170,0.381,583.17,582.24,0.584]
[1744865394369,0.381,583.17,582.25,0.31530463]
[1744865396775,0.381,583.17,582.24,0.584]
[1744865397075,0.381,583.17,582.25,0.87830042]
[1744865397273,0.381,583.17,582.26,0.31530042]
[1744865397674,0.3429414,583.19,582.26,0.31530042]
[1744865397873,0.31110226,583.18,582.26,0.31530042]
[1744865398474,0.3429414,583.19,582.25,0.563]
[1744865398674,0.3429414,583.19,582.26,0.31530012]
[1744865399980,0.3429414,583.19,582.25,0.563]
[1744865400280,0.31110255,583.18,582.26,0.31530072]
[1744865402682,0.9569414,583.19,582.25,0.86166758]
[1744865402882,0.31110226,583.18,582.26,0.31530042]
[1744865404379,0.9569414,583.19,582.25,0.563]
[1744865404584,0.31110226,583.18,582.26,0.31530042]
[1744865405984,0.31110226,583.18,582.27,0.48]
[1744865406188,0.31110226,583.18,582.28,0.31530042]
[1744865409193,0.9569414,583.19,582.27,0.48]
[1744865409394,0.9569414,583.19,582.28,0.31530746]
[1744865409395,0.3111093,583.18,582.28,0.31530746]
[1744865411199,0.9569414,583.19,582.27,0.48]
[1744865411500,0.614,583.19,582.27,0.77863683]
[1744865411892,0.614,583.19,582.28,0.34347736]
[1744865413104,0.614,583.19,582.28,0.74547736]
[1744865425503,0.614,583.19,582.29,0.31521724]
[1744865428900,0.614,583.19,582.29,0.6586887]
[1744865429105,0.614,583.19,582.3,0.31521724]
[1744865429701,0.614,583.19,582.3,0.71021724]
[1744865429902,0.614,583.19,582.31,0.31521724]
[1744865436510,0.614,583.19,582.3,0.69362017]
[1744865436709,0.614,583.19,582.31,0.31521888]
[1744865438008,0.614,583.19,582.3,1.18346556]
[1744865438206,0.614,583.19,582.31,0.31521683]
[1744865440808,0.614,583.19,582.31,0.86621683]
[1744865441009,0.614,583.19,582.32,0.31521683]
[1744865448913,0.614,583.19,582.31,0.551]
[1744865449208,0.614,583.19,582.32,0.31524141]
[1744865449409,0.614,583.19,582.33,0.31524141]
[1744865449612,0.614,583.19,582.32,0.31524141]
[1744865449909,0.614,583.19,582.33,0.31524141]
[1744865450115,0.614,583.19,582.32,0.31524141]
[1744865450311,0.614,583.19,582.33,0.31524141]
[1744865450511,0.614,583.19,582.32,0.31524141]
[1744865450816,0.614,583.19,582.31,0.551]
[1744865451017,0.614,583.19,582.32,0.31524102]
[1744865452517,0.614,583.19,582.31,0.551]
[1744865452816,0.614,583.19,582.32,0.31524087]
[1744865454118,0.614,583.19,582.31,0.551]
[1744865454317,0.614,583.19,582.32,0.31524414]
[1744865455621,0.614,583.19,582.31,1.056]
[1744865455922,0.614,583.19,582.32,0.31524389]
[1744865458923,0.614,583.19,582.31,1.056]
[1744865459124,0.614,583.19,582.32,0.31523144]
[1744865460525,0.614,583.19,582.31,1.056]
[1744865467733,0.614,583.19,582.32,0.31523386]
[1744865468032,0.614,583.19,582.31,1.056]
[1744865468231,0.614,583.19,582.32,0.31523372]
[1744865474043,0.614,583.19,582.33,0.487]
[1744865474340,0.614,583.19,582.34,0.31523372]
[1744865480745,0.614,583.19,582.35,0.566]
[1744865481045,0.614,583.19,582.36,0.31523422]
[1744865485751,0.614,583.19,582.35,0.566]
[1744865485948,0.614,583.19,582.36,0.3152344]
[1744865488456,0.614,583.19,582.37,0.561]
[1744865488650,0.614,583.19,582.38,0.3152344]
[1744865490657,0.614,583.19,582.37,0.561]
[1744865490857,0.614,583.19,582.38,0.31523142]
[1744865498669,0.614,583.19,582.37,0.561]
[1744865498864,0.614,583.19,582.38,0.31523412]
[1744865501579,0.614,583.19,582.36,0.31523412]
[1744865501768,0.614,583.19,582.37,0.31523412]
[1744865501969,0.614,583.19,582.38,0.31523382]
[1744865502169,0.614,583.19,582.39,0.31523382]
[1744865502371,0.614,583.19,582.36,0.31523382]
[1744865502565,0.614,583.19,582.37,0.31523382]
[1744865502865,0.614,583.19,582.35,0.86462145]
[1744865502866,0.614,583.19,582.38,0.31523382]
[1744865503171,0.614,583.19,582.39,0.31523382]
[1744865503367,0.614,583.19,582.4,0.31523382]
[1744865503566,0.614,583.19,582.36,0.31523382]
[1744865503971,0.614,583.19,582.37,0.432]
[1744865504270,0.614,583.19,582.38,0.31523382]
[1744865505973,0.614,583.19,582.37,0.432]
[1744865506272,0.614,583.19,582.38,0.31523089]
[1744865506672,0.614,583.19,582.37,0.432]
[1744865506973,0.614,583.19,582.38,0.31523085]
[1744865508770,0.614,583.19,582.37,0.73061633]
[1744865508975,0.614,583.19,582.38,0.31523172]
[1744865510071,0.614,583.19,582.37,0.432]
[1744865510277,0.614,583.19,582.37,0.73061633]
[1744865511176,0.614,583.19,582.38,0.432]
[1744865515877,0.614,583.19,582.39,0.31523324]
[1744865516378,0.614,583.19,582.38,0.432]
[1744865516574,0.614,583.19,582.39,0.31523294]
[1744865519674,0.614,583.19,582.4,0.31523063]
[1744865519879,0.614,583.19,582.39,0.31523063]
[1744865520075,0.614,583.19,582.4,0.31523063]
[1744865520374,0.614,583.19,582.41,0.31523063]
[1744865520574,0.614,583.19,582.39,0.31523063]
[1744865520781,0.614,583.19,582.4,0.31523063]
[1744865521077,0.614,583.19,582.39,0.31523063]
[1744865521282,0.614,583.19,582.4,0.31523063]
[1744865521476,0.614,583.19,582.39,0.31523063]
[1744865522382,0.614,583.19,582.38,0.432]
[1744865522579,0.614,583.19,582.39,0.31523114]
[1744865530188,0.614,583.19,582.4,0.568]
[1744865530489,0.614,583.19,582.41,0.31523114]
[1744865533790,0.614,583.19,582.42,0.31523153]
[1744865534088,0.614,583.19,582.43,0.31523153]
[1744865534287,0.614,583.19,582.41,0.31523153]
[1744865538492,0.614,583.19,582.4,0.568]
[1744865538691,0.614,583.19,582.41,0.31522623]
[1744865540194,0.614,583.19,582.42,0.31522595]
[1744865540394,0.614,583.19,582.41,0.31522595]
[1744865540694,0.614,583.19,582.42,0.31522595]
[1744865540894,0.614,583.19,582.41,0.31522595]
[1744865541195,0.614,583.19,582.4,0.568]
[1744865543892,0.614,583.19,582.4,1.057]
[1744865547699,0.614,583.19,582.4,1.521]
[1744865567020,0.614,583.19,582.41,0.31519189]
[1744865567520,0.614,583.19,582.4,1.33059711]
[1744865567723,0.614,583.19,582.41,0.31519185]
[1744865570522,0.614,583.19,582.41,0.94419185]
[1744865570721,0.614,583.19,582.42,0.31519185]
[1744865571822,0.614,583.19,582.42,0.96419185]
[1744865572018,0.614,583.19,582.43,0.31519185]
[1744865577232,0.614,583.19,582.42,0.94759455]
[1744865577528,0.614,583.19,582.43,0.31519216]
[1744865580433,0.614,583.19,582.42,0.94759455]
[1744865580734,0.614,583.19,582.43,0.31519043]
[1744865581534,0.614,583.19,582.42,0.649]
[1744865581734,0.614,583.19,582.43,0.31519229]
[1744865584736,0.614,583.19,582.4,0.464]
[1744865584933,0.614,583.19,582.41,0.31519387]
[1744865585538,0.614,583.19,582.42,0.29859711]
[1744865585738,0.614,583.19,582.43,0.31519387]
[1744865586438,0.614,583.19,582.42,0.29859711]
[1744865586638,0.614,583.19,582.43,0.31519369]
[1744865587436,0.614,583.19,582.44,0.31519369]
[1744865588041,0.614,583.19,582.45,0.49]
[1744865588242,0.614,583.19,582.46,0.31519222]
[1744865591045,0.614,583.19,582.47,0.589]
[1744865591344,0.614,583.19,582.48,0.31519222]
[1744865599250,0.614,583.19,582.47,0.589]
[1744865599444,0.614,583.19,582.49,0.31518397]
[1744865599750,0.614,583.19,582.5,0.31518397]
[1744865599950,0.614,583.19,582.48,0.31518397]
[1744865607355,0.614,583.19,582.47,0.589]
[1744865607553,0.614,583.19,582.48,0.31518531]
[1744865610559,0.614,583.19,582.47,0.589]
[1744865610757,0.614,583.19,582.48,0.31518569]
[1744865613859,0.614,583.19,582.47,0.589]
[1744865620455,0.614,583.19,582.48,0.43]
[1744865628572,0.614,583.19,582.49,0.611]
[1744865644087,0.614,583.19,582.5,0.31515218]
[1744865644287,0.614,583.19,582.49,0.611]
[1744865644487,0.614,583.19,582.5,0.31515227]
[1744865645288,0.614,583.19,582.49,0.611]
[1744865645789,0.614,583.19,582.5,0.556]
[1744865645987,0.614,583.19,582.51,0.31516263]
[1744865646591,0.614,583.19,582.5,0.556]
[1744865648390,0.614,583.19,582.51,0.612]
[1744865653493,0.614,583.19,582.52,0.31516418]
[1744865655795,0.614,583.19,582.51,0.612]
[1744865655993,0.614,583.19,582.52,0.31516418]
[1744865657501,0.614,583.19,582.51,0.612]
[1744865657796,0.614,583.19,582.52,0.31516555]
[1744865662596,0.614,583.19,582.53,0.31516399]
[1744865662795,0.614,583.19,582.52,0.31516399]
[1744865663100,0.614,583.19,582.53,0.31516399]
[1744865663301,0.614,583.19,582.52,0.31516399]
[1744865667306,0.614,583.19,582.51,0.612]
[1744865667505,0.614,583.19,582.52,0.31517286]
[1744865667806,0.614,583.19,582.51,0.31517286]
[1744865668005,0.614,583.19,582.52,0.31517286]
[1744865668206,0.614,583.19,582.53,0.31517286]
[1744865668403,0.614,583.19,582.54,0.31517286]
[1744865668607,0.614,583.19,582.51,0.31517286]
[1744865668909,0.614,583.19,582.5,0.556]
[1744865669107,0.614,583.19,582.51,0.31517423]
[1744865670607,0.614,583.19,582.52,0.527]
[1744865670812,0.614,583.19,582.53,0.31517423]
[1744865672204,0.614,583.19,582.52,0.527]
[1744865672410,0.614,583.19,582.53,0.315174]
[1744865675411,0.614,583.19,582.53,0.68]
[1744865675613,0.614,583.19,582.54,0.31516015]
[1744865677015,0.614,583.19,582.53,0.68]
[1744865677215,0.614,583.19,582.54,0.31517326]
[1744865679117,0.614,583.19,582.54,0.93517326]
[1744865679316,0.614,583.19,582.55,0.31517326]
[1744865682419,0.614,583.19,582.54,0.62]
[1744865688827,0.614,583.19,582.54,1.184]
[1744865703441,0.614,583.19,582.54,1.852]
[1744865710245,0.31152596,583.18,582.54,1.852]
[1744865710745,0.31152596,583.36,582.54,1.852]
[1744865710946,0.34284734,583.35,582.54,1.852]
[1744865711444,0.31152535,583.34,582.54,1.852]
[1744865711646,0.3428591,583.33,582.54,1.852]
[1744865711844,0.31152535,583.32,582.54,1.852]
[1744865712046,0.34287085,583.31,582.54,1.852]
[1744865712344,0.31152535,583.3,582.54,1.852]
[1744865712544,0.65440208,583.3,582.54,1.852]
[1744865712845,0.31152535,583.29,582.54,1.852]
[1744865713043,0.31152565,583.28,582.54,1.852]
[1744865713345,0.83052565,583.27,582.54,1.852]
[1744865713540,0.31152565,583.26,582.54,1.852]
[1744865717950,0.31153204,583.25,582.54,1.852]
[1744865718253,0.31153204,583.24,582.54,1.852]
[1744865718449,0.31153204,583.26,582.54,1.852]
[1744865729268,0.519,583.27,582.54,1.852]
[1744865729468,0.31153689,583.26,582.54,1.852]
[1744865730568,0.31153689,583.29,582.54,1.852]
[1744865730870,0.31153689,583.28,582.54,1.852]
[1744865731069,0.31153689,583.29,582.54,1.852]
[1744865731368,0.31153689,583.28,582.54,1.852]
[1744865731667,0.31153689,583.27,582.54,1.852]
[1744865731870,0.31153689,583.29,582.54,1.852]
[1744865732570,0.34287673,583.3,582.54,1.852]
[1744865732773,0.31154396,583.29,582.54,1.852]
[1744865734173,0.34287673,583.3,582.54,1.852]
[1744865734370,0.621,583.28,582.54,1.852]
[1744865734569,0.31154582,583.27,582.54,1.852]
[1744865735874,0.31154248,583.26,582.54,1.852]
[1744865736073,0.31154248,583.27,582.54,1.852]
[1744865736372,0.31154248,583.26,582.54,1.852]
[1744865736572,0.31154248,583.27,582.54,1.852]
[1744865736774,0.31154248,583.26,582.54,1.852]
[1744865736974,0.31154248,583.27,582.54,1.852]
[1744865737169,0.31154248,583.26,582.54,1.852]
[1744865737369,0.31154248,583.27,582.54,1.852]
[1744865737673,0.31154576,583.26,582.54,1.852]
[1744865737868,0.31154576,583.25,582.54,1.852]
[1744865738173,0.31154576,583.24,582.54,1.852]
[1744865738473,0.31154576,583.23,582.54,1.852]
[1744865738770,0.31154576,583.22,582.54,1.852]
[1744865738975,0.31154576,583.27,582.54,1.852]
[1744865739174,0.31154582,583.26,582.54,1.852]
[1744865739375,0.31154582,583.25,582.54,1.852]
[1744865739576,0.31154582,583.27,582.54,1.852]
[1744865739772,0.31154582,583.26,582.54,1.852]
[1744865739972,0.31154582,583.25,582.54,1.852]
[1744865740173,0.31154582,583.27,582.54,1.852]
[1744865740373,0.31154582,583.26,582.54,1.852]
[1744865740575,0.31154582,583.27,582.54,1.852]
[1744865740777,0.31154582,583.26,582.54,1.852]
[1744865740977,0.31154582,583.25,582.54,1.852]
[1744865741173,0.31154582,583.27,582.54,1.852]
[1744865741376,0.31154582,583.26,582.54,1.852]
[1744865741677,0.31154582,583.25,582.54,1.852]
[1744865741878,0.31154582,583.27,582.54,1.852]
[1744865742076,0.31154582,583.26,582.54,1.852]
[1744865742373,0.31155066,583.25,582.54,1.852]
[1744865742577,0.31155066,583.27,582.54,1.852]
[1744865742877,0.31155066,583.26,582.54,1.852]
[1744865743077,0.31155066,583.27,582.54,1.852]
[1744865743278,0.31155066,583.26,582.54,1.852]
[1744865743578,0.31155066,583.25,582.54,1.852]
[1744865743777,0.621,583.28,582.54,1.852]
[1744865743778,0.31155066,583.27,582.54,1.852]
[1744865743979,0.31155066,583.24,582.54,1.852]
[1744865744178,0.31155066,583.23,582.54,1.852]
[1744865744475,0.31155066,583.22,582.54,1.852]
[1744865744679,0.31155066,583.21,582.54,1.852]
[1744865744881,0.621,583.28,582.54,1.852]
[1744865754584,0.31153853,583.27,582.54,1.852]
[1744865755287,0.621,583.28,582.54,1.852]
[1744865755481,0.31153845,583.27,582.54,1.852]
[1744865756984,0.31154782,583.26,582.54,1.852]
[1744865757185,0.31154782,583.27,582.54,1.852]
[1744865757386,0.31154782,583.26,582.54,1.852]
[1744865757587,0.31154782,583.25,582.54,1.852]
[1744865757787,0.31154782,583.27,582.54,1.852]
[1744865757988,0.31154782,583.26,582.54,1.852]
[1744865758184,0.31154782,583.25,582.54,1.852]
[1744865758385,0.31154782,583.27,582.54,1.852]
[1744865758583,0.3115427,583.26,582.54,1.852]
[1744865758788,0.3115427,583.27,582.54,1.852]
[1744865759088,0.3115427,583.26,582.54,1.852]
[1744865759289,0.621,583.28,582.54,1.852]
[1744865759290,0.3115427,583.27,582.54,1.852]
[1744865759489,0.3115427,583.26,582.54,1.852]
[1744865759692,0.3115427,583.27,582.54,1.852]
[1744865759889,0.3115427,583.26,582.54,1.852]
[1744865760085,0.3115427,583.27,582.54,1.852]
[1744865760288,0.3115427,583.26,582.54,1.852]
[1744865760589,0.3115427,583.25,582.54,1.852]
[1744865760889,0.3115427,583.24,582.54,1.852]
[1744865761085,0.3115427,583.27,582.54,1.852]
[1744865761284,0.3115427,583.26,582.54,1.852]
[1744865761491,0.3115427,583.25,582.54,1.852]
[1744865761690,0.3115427,583.27,582.54,1.852]
[1744865761989,0.3115427,583.26,582.54,1.852]
[1744865762188,0.3115427,583.25,582.54,1.852]
[1744865762389,0.3115427,583.27,582.54,1.852]
[1744865762588,0.3115427,583.26,582.54,1.852]
[1744865762785,0.3115427,583.27,582.54,1.852]
[1744865762990,0.621,583.28,582.54,1.852]
[1744865763190,0.3115383,583.27,582.54,1.852]
[1744865764486,0.3115383,583.29,582.54,1.852]
[1744865764685,0.3115386,583.28,582.54,1.852]
[1744865764887,0.3115386,583.29,582.54,1.852]
[1744865765088,0.3115386,583.28,582.54,1.852]
[1744865765291,0.3115386,583.29,582.54,1.852]
[1744865766192,0.34287673,583.3,582.54,1.852]
[1744865767094,0.469,583.29,582.54,1.852]
[1744865795106,0.34287673,583.3,582.54,1.852]
[1744865798308,0.748,583.29,582.54,1.852]
[1744865800013,0.31142506,583.28,582.54,1.852]
[1744865800312,0.31142506,583.27,582.54,1.852]
[1744865800507,0.31142506,583.28,582.54,1.852]
[1744865800715,0.748,583.29,582.54,1.852]
[1744865801013,0.31143298,583.28,582.54,1.852]
[1744865806715,0.748,583.29,582.54,1.852]
[1744865806921,0.31142541,583.28,582.54,1.852]
[1744865808220,0.748,583.29,582.54,1.852]
[1744865820233,0.31143036,583.28,582.54,1.852]
[1744865820937,0.748,583.29,582.54,1.852]
[1744865821138,0.31142976,583.28,582.54,1.852]
[1744865821737,0.34287673,583.3,582.54,1.852]
[1744865821938,0.31142505,583.29,582.54,1.852]
[1744865824238,0.34287673,583.3,582.54,1.852]
[1744865825344,0.484,583.29,582.54,1.852]
[1744865838353,0.34287673,583.3,582.54,1.852]
[1744865842256,0.545,583.29,582.54,1.852]
[1744865860372,0.31142529,583.28,582.54,1.852]
[1744865861875,0.545,583.29,582.54,1.852]
[1744865862173,0.31142624,583.28,582.54,1.852]
[1744865862773,0.545,583.29,582.54,1.852]
[1744865862974,0.31142624,583.28,582.54,1.852]
[1744865863574,0.34287673,583.3,582.54,1.852]
[1744865863774,0.31142594,583.29,582.54,1.852]
[1744865865976,0.34287673,583.3,582.54,1.852]
[1744865866178,0.31142625,583.29,582.54,1.852]
[1744865866871,0.34287673,583.3,582.54,1.852]
[1744865867077,0.576,583.28,582.54,1.852]
[1744865892690,0.3114939,583.27,582.54,1.852]
[1744865893797,0.576,583.28,582.54,1.852]
[1744865893997,0.31149577,583.27,582.54,1.852]
[1744865895401,0.31149577,583.29,582.54,1.852]
[1744865895602,0.31149577,583.28,582.54,1.852]
[1744865895798,0.31149577,583.27,582.54,1.852]
[1744865895997,0.31149577,583.29,582.54,1.852]
[1744865896201,0.31149577,583.28,582.54,1.852]
[1744865896396,0.31149577,583.29,582.54,1.852]
[1744865896696,0.31149577,583.28,582.54,1.852]
[1744865896902,0.34287673,583.3,582.54,1.852]
[1744865897098,0.31149053,583.29,582.54,1.852]
[1744865898003,0.587,583.28,582.54,1.852]
[1744865898204,0.31149053,583.27,582.54,1.852]
[1744865898503,0.587,583.28,582.54,1.852]
[1744865898703,0.31149026,583.27,582.54,1.852]
[1744865900101,0.587,583.28,582.54,1.852]
[1744865900306,0.31149007,583.27,582.54,1.852]
[1744865906304,0.587,583.28,582.54,1.852]
[1744865906509,0.31149023,583.27,582.54,1.852]
[1744865911213,0.31149017,583.26,582.54,1.852]
[1744865911513,0.587,583.28,582.54,1.852]
[1744865911813,0.31148987,583.27,582.54,1.852]
[1744865912607,0.587,583.28,582.54,1.852]
[1744865912808,0.31149295,583.27,582.54,1.852]
[1744865914109,0.587,583.28,582.54,1.852]
[1744865914314,0.31149027,583.27,582.54,1.852]
[1744865920412,0.31149027,583.26,582.54,1.852]
[1744865920614,0.31149027,583.25,582.54,1.852]
[1744865920814,0.31149027,583.24,582.54,1.852]
[1744865921011,0.31149027,583.29,582.54,1.852]
[1744865922616,0.678,583.28,582.54,1.852]
[1744865922916,0.31149027,583.27,582.54,1.852]
[1744865923511,0.678,583.28,582.54,1.852]
[1744865923714,0.31149004,583.27,582.54,1.852]
[1744865924117,0.678,583.28,582.54,1.852]
[1744865924319,0.31149004,583.27,582.54,1.852]
[1744865926722,0.678,583.28,582.54,1.852]
[1744865926922,0.31149064,583.27,582.54,1.852]
[1744865933926,0.31149064,583.29,582.54,1.852]
[1744865934119,0.31149064,583.28,582.54,1.852]
[1744865934426,0.31149064,583.27,582.54,1.852]
[1744865934627,0.31149064,583.29,582.54,1.852]
[1744865934822,0.31149064,583.28,582.54,1.852]
[1744865935023,0.31149064,583.29,582.54,1.852]
[1744865935227,0.31149064,583.28,582.54,1.852]
[1744865935428,0.31149064,583.29,582.54,1.852]
[1744865935621,0.31149064,583.28,582.54,1.852]
[1744865935826,0.31149064,583.27,582.54,1.852]
[1744865936026,0.31149064,583.29,582.54,1.852]
[1744865936224,0.31149064,583.28,582.54,1.852]
[1744865936421,0.31149064,583.27,582.54,1.852]
[1744865936625,0.31149064,583.29,582.54,1.852]
[1744865936828,0.744,583.26,582.54,1.852]
[1744865937132,0.31149064,583.25,582.54,1.852]
[1744865937330,0.744,583.26,582.54,1.852]
[1744865960747,0.34287673,583.3,582.54,1.852]
[1744865963648,0.624,583.29,582.54,1.852]
[1744865972061,0.31148531,583.28,582.54,1.852]
[1744865972257,0.624,583.29,582.54,1.852]
[1744865974157,0.31148841,583.28,582.54,1.852]
[1744865975060,0.31148871,583.27,582.54,1.852]
[1744865975260,0.31148871,583.28,582.54,1.852]
[1744865975461,0.31148871,583.27,582.54,1.852]
[1744865975661,0.31148871,583.26,582.54,1.852]
[1744865975856,0.31148871,583.28,582.54,1.852]
[1744865976155,0.31148648,583.27,582.54,1.852]
[1744865976360,0.31148648,583.28,582.54,1.852]
[1744865976660,0.31148648,583.27,582.54,1.852]
[1744865976861,0.31148648,583.28,582.54,1.852]
[1744865977060,0.31148648,583.27,582.54,1.852]
[1744865977357,0.31148648,583.26,582.54,1.852]
[1744865977561,0.31148648,583.28,582.54,1.852]
[1744865977761,0.31148648,583.27,582.54,1.852]
[1744865977960,0.31148648,583.28,582.54,1.852]
[1744865980861,0.31148648,583.27,582.54,1.852]
[1744865981065,0.31148648,583.29,582.54,1.852]
[1744865981266,0.31148648,583.28,582.54,1.852]
[1744865981464,0.31148648,583.27,582.54,1.852]
[1744865981664,0.31148648,583.29,582.54,1.852]
[1744865981862,0.31148648,583.28,582.54,1.852]
[1744865982061,0.31148648,583.29,582.54,1.852]
[1744865982263,0.31148648,583.28,582.54,1.852]
[1744865982461,0.34287673,583.3,582.54,1.852]
[1744865982462,0.31148648,583.29,582.54,1.852]
[1744865982668,0.34287673,583.3,582.54,1.852]
[1744865982969,0.31148698,583.29,582.54,1.852]
[1744865983566,0.713,583.28,582.54,1.852]
[1744865983867,0.31148698,583.27,582.54,1.852]
[1744865987473,0.31148888,583.26,582.54,1.852]
[1744865987672,0.31148888,583.27,582.54,1.852]
[1744865992078,0.713,583.28,582.54,1.852]
[1744865992278,0.31148306,583.27,582.54,1.852]
[1744865993580,0.713,583.28,582.54,1.852]
[1744865993781,0.31148323,583.27,582.54,1.852]
[1744865995180,0.713,583.28,582.54,1.852]
[1744865995375,0.31148295,583.27,582.54,1.852]
[1744865999980,0.31148634,583.26,582.54,1.852]
[1744866000180,0.31148634,583.27,582.54,1.852]
[1744866000681,0.31148309,583.26,582.54,1.852]
[1744866000981,0.31148309,583.25,582.54,1.852]
[1744866001179,0.31148309,583.29,582.54,1.852]
[1744866001382,0.31148324,583.28,582.54,1.852]
[1744866001575,0.31148324,583.29,582.54,1.852]
[1744866002681,0.34287673,583.3,582.54,1.852]
[1744866002982,0.31148294,583.29,582.54,1.852]
[1744866003181,1.07348294,583.29,582.54,1.852]
[1744866003382,0.31148294,583.28,582.54,1.852]
[1744866007383,0.762,583.29,582.54,1.852]
[1744866007584,0.31148704,583.28,582.54,1.852]
[1744866010684,0.31148567,583.27,582.54,1.852]
[1744866010884,0.31148567,583.26,582.54,1.852]
[1744866011083,0.31148567,583.28,582.54,1.852]
[1744866011284,0.31148567,583.27,582.54,1.852]
[1744866011479,0.31148567,583.28,582.54,1.852]
[1744866012284,0.31148567,583.28,582.54,0.564]
[1744866012587,0.762,583.29,582.54,0.564]
[1744866013485,0.762,583.29,582.3,0.34346556]
[1744866014687,0.762,583.29,582.31,0.29865477]
[1744866016182,0.762,583.29,582.32,0.34345377]
[1744866018888,0.762,583.29,582.33,0.31521236]
[1744866019087,0.762,583.29,582.34,0.34344197]
[1744866019383,0.762,583.29,582.35,0.31521236]
[1744866020284,0.762,583.29,582.36,0.31521118]
[1744866020489,0.762,583.29,582.34,0.34344197]
[1744866020791,0.762,583.29,582.35,0.31521137]
[1744866021792,0.762,583.29,582.34,0.34344197]
[1744866021985,0.762,583.29,582.35,0.31521377]
[1744866023183,0.762,583.29,582.36,0.34343018]
[1744866025285,0.762,583.29,582.37,0.31521425]
[1744866025492,0.762,583.29,582.36,0.34343018]
[1744866027187,0.34287673,583.3,582.36,0.34343018]
[1744866029295,0.34287673,583.3,582.37,0.31521353]
[1744866029997,0.34287673,583.3,582.36,0.34343018]
[1744866030296,0.34287673,583.3,582.37,0.31520748]
[1744866030891,0.34287673,583.3,582.36,0.34343018]
[1744866035494,0.34287673,583.3,582.37,0.31521523]
[1744866041198,0.34287673,583.3,582.38,0.31520504]
[1744866041403,0.34287673,583.3,582.37,0.31520504]
[1744866042699,0.34287673,583.3,582.36,0.64199527]
[1744866042904,0.34287673,583.3,582.37,0.31520567]
[1744866044300,0.34287673,583.3,582.36,0.64199527]
[1744866046502,0.34287673,583.3,582.36,0.34343018]
[1744866046803,0.34287673,583.3,582.36,0.64199527]
[1744866048208,0.34287673,583.3,582.36,1.18599527]
[1744866049510,0.34287673,583.3,582.36,0.88743018]
[1744866050811,0.34287673,583.3,582.36,1.18599527]
[1744866051312,0.532,583.44,582.36,0.84256509]
[1744866052512,0.532,583.44,582.36,0.544]
[1744866053714,0.532,583.44,582.36,0.84244602]
[1744866054214,0.31140903,583.43,582.37,0.31520227]
[1744866055616,0.532,583.44,582.36,0.544]
[1744866055918,0.31140931,583.43,582.37,0.31520256]
[1744866058219,0.532,583.44,582.37,0.31520256]
[1744866058817,0.31140603,583.43,582.37,0.31520256]
[1744866059022,0.532,583.44,582.38,0.31520151]
[1744866059221,0.31140856,583.43,582.37,0.31520151]
[1744866059422,0.31140856,583.96,582.38,0.31520151]
[1744866059717,0.31140856,583.95,582.37,0.31520151]
[1744866059922,0.29849722,583.61,582.38,0.31520151]
[1744866060116,0.31140856,583.94,582.38,0.31520151]
[1744866060322,1.31078176,583.97,582.36,0.84249722]
[1744866060923,0.31140856,583.96,582.37,0.31520181]
[1744866061122,0.31140856,583.95,582.37,0.31520181]